Cogmind - Beta 16 @@@ ROGUE MODE // 2025.11.15 @ 18:01:37 Player: Anting Result: Self-destructed Performance ------------- Evolutions (0) 0 Regions Visited (3) 600 Robots Destroyed (35) 175 Value Destroyed (666) 666 Prototype IDs (2) 40 Alien Tech Used (0) 0 Bonus (281) 281 TOTAL SCORE: 1762 Bonus ------- Registered with UFD 300 Friendly Fire -19 Cogmind --------- Core Integrity 38/250 Matter 294/300 Energy 250/250 System Corruption 1% Temperature Cool (0) Movement Treading (160) Location -7/Scraptown Parts ------- > --- POWER (1) -------- Ion Engine > --- PROPULSION (2) --- Light Treads Light Treads > --- UTILITY (2) ------ Large Storage Unit Seismic Detector > --- WEAPON (2) ------- Assault Rifle Battle Rifle > --- INVENTORY (15) --- Makeshift Power Source Scrap Suit Improved Cooling System Greatsword Peak State ------------ > --- POWER ------------ Ion Engine > --- PROPULSION ------- Light Treads Light Treads > --- UTILITY ---------- Improved Heat Sink Large Storage Unit > --- WEAPON ----------- Small Laser Battle Rifle > --- INVENTORY -------- Subdweller Power Source Light Treads Light Treads Light Treads Aluminum Leg Subdweller Monowheel Subdweller Monowheel Subdweller Optics Improved Terrain Scanner Seismic Detector Light Armor Plating Light Armor Plating EM Pulse Gun Assault Rifle Grenade Launcher [Rating: 12] Favorites ----------- Power Ion Engine Engine Ion Engine Propulsion Light Treads Treads Light Treads Utility Large Storage Unit Device Seismic Detector Storage Large Storage Unit Weapon Assault Rifle Energy Gun Medium Laser Ballistic Gun Assault Rifle Launcher Grenade Launcher Build | -11 -10 -10 -7 ------- Run | Yrd Mat Sub Scr Slots Evolved . | . . . . Power . | . . . . Propulsion . | . . . . Utility . | . . . . Weapon . | . . . . Parts Attached 16 | 7 6 1 2 Power 2 | 1 1 . . Engine 2 | 1 1 . . Core . | . . . . Reactor . | . . . . Propulsion 4 | 2 . . 2 Treads 4 | 2 . . 2 Leg . | . . . . Wheel . | . . . . Hover . | . . . . Flight . | . . . . Utility 4 | 2 2 . . Device 2 | 1 1 . . Storage 2 | 1 1 . . Processor . | . . . . Hackware . | . . . . Protection . | . . . . Artifact . | . . . . Weapon 6 | 2 3 1 . Energy Gun 2 | 1 1 . . Energy Cannon . | . . . . Ballistic Gun 3 | 1 1 1 . Ballistic Cannon . | . . . . Launcher 1 | . 1 . . Special Weapon . | . . . . Impact Weapon . | . . . . Slashing Weapon . | . . . . Piercing Weapon . | . . . . Special Melee Weapon . | . . . . Unidentified Prototypes . | . . . . Parts Lost 3 | . 1 2 . Power 1 | . 1 . . Propulsion . | . . . . Utility . | . . . . Weapon 2 | . . 2 . Highest Loss Streak 1 | . 1 1 . To Critical Strikes . | . . . . Average Backups 10 | 3 9 14 11 Power . | . . . 1 Propulsion 3 | 1 2 5 4 Utility 3 | . 3 5 3 Weapon 2 | . 2 3 1 Tool/Special . | . . . . Unused Backups 35 | . 1 3 31 Power 5 | . 1 . 4 Propulsion 10 | . . 2 8 Utility 13 | . . 1 12 Weapon 6 | . . . 6 Tool/Special 1 | . . . 1 Average Slot Usage (%) 99 | . 99 100 100 Engine 13 | . 13 14 14 Treads 28 | . 28 28 28 Device 14 | . 14 14 14 Storage 14 | . 14 14 14 Energy Gun 5 | . 14 13 . Ballistic Gun 22 | . 13 14 28 Peak Build Rating 12 | 7 10 12 12 Average Rating 10 | 5 8 10 11 On Entrance 7 | . 7 10 12 Avg Prop Armor Cover (%) . | . . . . Naked Turns . | . . . . Heaviest Build 30 | 13 30 30 30 Greatest Support 40 | 40 40 40 40 Greatest Overweight (x) . | . . . . Average Overweight (x) . | . . . . Largest Inventory Capacity 15 | 8 15 15 15 Average Capacity 13 | 7 12 15 15 Most Carried 15 | 5 14 15 15 Average Carried 10 | 3 9 14 11 Final Capacity 15 | 8 15 15 15 Final Carried 14 | 5 14 14 6 Class Distribution -------------------- 100% | Mutant Dominant Class ---------------- Mutant | -10/Materials Mutant | -10/Subcaves Mutant | -7/Scraptown Resources | -11 -10 -10 -7 ----------- Run | Yrd Mat Sub Scr Matter Collected 814 | 309 266 101 138 Remotely . | . . . . Salvage Created 1168 | 182 761 110 115 Parts 73 | 16 40 12 5 Haulers Intercepted 2 | . 2 . . Recyclers Shooed 2 | . 2 . . Parts Field Recycled . | . . . . Retrieved Matter . | . . . . Parts Self-Destructed 16 | . . 14 2 Prevented . | . . . . Parts Restored . | . . . . Kills | -11 -10 -10 -7 ------- Run | Yrd Mat Sub Scr Combat Hostiles Destroyed 23 | . 17 6 . Guns 13 | . 11 2 . AOE 10 | . 6 4 . Classes Destroyed 7 | 2 4 1 . Tunneler 5 | 4 1 . . Hauler 2 | . 2 . . Recycler 2 | 1 1 . . Watcher 3 | . 3 . . Swarmer 10 | . 6 4 . Grunt 11 | . 11 . . Subdweller 2 | . . 2 . Best Kill Streak 7 | 5 7 4 . Combat Bots Only 6 | . 6 4 . Max Kills in Single Turn 3 | 1 3 2 . Gunslinging . | . . . . Exploded 3 | . 3 2 . Melee . | . . . . Uniques/NPCs Destroyed . | . . . . Combat | -11 -10 -10 -7 -------- Run | Yrd Mat Sub Scr Hostile Shots Fired 103 | . 62 33 8 Missed 24 | . 12 7 5 Hits 79 | . 50 26 3 Projectile 79 | . 50 26 3 Damage Taken 948 | . 503 402 43 Core 212 | . 133 79 . Absorbed by Shields . | . . . . Core Remaining (%) 100 | 100 . . . Volleys Fired 111 | 13 66 22 10 Largest 2 | 2 2 2 2 Hottest 70 | 70 70 65 45 Shots Fired 208 | 26 129 33 20 Gun 202 | 26 126 30 20 Cannon . | . . . . Launcher 6 | . 3 3 . Special . | . . . . Kinetic 121 | 13 63 25 20 Thermal 81 | 13 63 5 . Explosive 6 | . 3 3 . Electromagnetic . | . . . . Robot Hit Streak 20 | 3 20 13 4 Robot Miss Streak 6 | 2 6 2 1 Penetration Max . | . . . . Secondary Targets 3 | . 3 . . Max Gunslinging Chain 1 | . 1 . . Shots Hit Robots 136 | 14 88 25 9 Core Hits 57 | 6 37 11 3 Critical Kills 1 | . 1 . . Critical Parts Destroyed . | . . . . Critical Strikes 5 | . 5 . . Burn 4 | . 4 . . Destroy 1 | . 1 . . Melee Attacks . | . . . . Impact . | . . . . Slashing . | . . . . Piercing . | . . . . Sneak Attacks . | . . . . Combat Hostiles . | . . . . Follow-up Attacks . | . . . . Damage Inflicted 2430 | 173 1560 562 135 Guns 1720 | 173 1108 304 135 Cannons . | . . . . Explosions 683 | . 425 258 . Melee . | . . . . Ramming 27 | . 27 . . Kinetic 1104 | 123 583 263 135 Thermal 616 | 50 525 41 . Explosive 683 | . 425 258 . Electromagnetic . | . . . . Impact . | . . . . Slashing . | . . . . Piercing . | . . . . Highest Corruption 1 | . . . 1 Average Corruption 1 | . . . 1 Corruption Purged . | . . . . Corruption Blocked . | . . . . Overload Shots . | . . . . Overflow Damage 23 | . 13 10 . Projectiles . | . . . . Explosions 23 | . 13 10 . Melee . | . . . . Knockbacks . | . . . . Impact . | . . . . Kinetic . | . . . . Secondary . | . . . . Self-Inflicted Damage . | . . . . Shots . | . . . . Rammed 6 | . 6 . . Targets Rammed 6 | . 6 . . Kicked . | . . . . Crushed . | . . . . Highest Temperature 138 | 117 138 . . Average Temperature 36 | 58 24 . . Received Heat Transfer 276 | . 234 42 . Siege Activations . | . . . . Martial Activations . | . . . . Shielding Activations . | . . . . Robots Disrupted . | . . . . Combat Hostiles . | . . . . Robots Corrupted . | . . . . Combat Hostiles . | . . . . Parts Fried . | . . . . Impact Corruptions . | . . . . Robots Melted . | . . . . Combat Hostiles . | . . . . Parts Melted 1 | . 1 . . Heat Transferred 2024 | 148 1776 100 . Parts Sabotaged . | . . . . Parts Stolen . | . . . . Parts Stripped . | . . . . Power Chain Reactions . | . . . . Alert | -11 -10 -10 -7 ------- Run | Yrd Mat Sub Scr Maximum Alert Level 1 | . 1 . . Low Security (%) 85 | 100 84 . . Level 1 14 | . 15 . . Level 2 . | . . . . Level 3 . | . . . . Level 4 . | . . . . Level 5 . | . . . . High Security . | . . . . Max Security . | . . . . Peak Influence 267 | 15 267 . . Initial . | . . . . Average 106 | 2 114 . . Influence Increases 807 | 25 667 110 5 Destroy 0b10 Robot/C 420 | . 340 80 . Destroy 0b10 Robot/NC 65 | 25 35 . 5 Destroy Leader 70 | . 70 . . Successful Hack 52 | . 52 . . Select Force Hacks 60 | . 60 . . Destroy Structure 20 | . 20 . . Lose Combat Pursuer 120 | . 90 30 . Influence Decreases 807 | 25 403 362 17 Entered New Map 140 | . . 128 12 Time Decay 637 | 25 393 214 5 Lost Part 30 | . 10 20 . Squads Dispatched 4 | . 4 . . Investigation 2 | . 2 . . Extermination . | . . . . Reinforcement 2 | . 2 . . Assault . | . . . . Garrison . | . . . . Intercept . | . . . . Searches Triggered . | . . . . Construction Impeded . | . . . . Haulers Reinforced . | . . . . Active Scanning Responses . | . . . . Cargo Convoy Interrupts . | . . . . Stealth | -11 -10 -10 -7 --------- Run | Yrd Mat Sub Scr Distress Signals 5 | . 5 . . Communications Jammed . | . . . . Distress Signals . | . . . . Times Spotted 46 | . 35 7 4 Peak Tracking Total 6 | . 6 6 5 Tactical Retreats 4 | . 3 1 . Traps | -11 -10 -10 -7 ------- Run | Yrd Mat Sub Scr Traps Triggered 1 | . 1 . . Indirectly . | . . . . Trap Hack Attempts . | . . . . Triggered . | . . . . Disarmed . | . . . . Reprogrammed . | . . . . Reused . | . . . . Traps Extracted . | . . . . Installed . | . . . . Triggered . | . . . . Machines | -11 -10 -10 -7 ---------- Run | Yrd Mat Sub Scr Machines Disabled 1 | . 1 . . Max in Single Turn 1 | . 1 . . Machines Repaired . | . . . . Machines Dismantled . | . . . . Machines Sabotaged . | . . . . Overloaded Fab Kills . | . . . . Hacking | -11 -10 -10 -7 --------- Run | Yrd Mat Sub Scr Machines Accessed 8 | . 7 . 1 Terminals 5 | . 5 . . Fabricators . | . . . . Repair Stations . | . . . . Recycling Units 2 | . 2 . . Scanalyzers . | . . . . Garrison Access . | . . . . Total Hacks 26 | . 22 . 4 Successful 20 | . 16 . 4 Failed 5 | . 5 . . Catastrophic . | . . . . Database Lockouts 1 | . 1 . . Manual 20 | . 20 . . Terminals 19 | . 19 . . Fabricators . | . . . . Repair Stations . | . . . . Recycling Units 3 | . 3 . . Scanalyzers . | . . . . Garrison Access . | . . . . Terminal Hacks 9 | . 5 . 4 Record 4 | . . . 4 Part Schematic 2 | . 2 . . Robot Analysis 1 | . 1 . . Prototype ID Bank 1 | . 1 . . Terminal Index 1 | . 1 . . Fabricator Hacks . | . . . . Repair Station Hacks . | . . . . Recycling Unit Hacks . | . . . . Scanalyzer . | . . . . Garrison Access Hacks . | . . . . Unauthorized Hacks 10 | . 10 . . Terminals 8 | . 8 . . Botnet 2 | . 2 . . Operators 1 | . 1 . . Skim 5 | . 5 . . Fabricators . | . . . . Repair Stations . | . . . . Recycling Units 2 | . 2 . . Tunnel 2 | . 2 . . Scanalyzers . | . . . . Garrison Access . | . . . . Data Cores Recovered . | . . . . Used . | . . . . Hacking Detections 5 | . 5 . . Full Trace Events . | . . . . Feedback Events . | . . . . Feedback Blocked . | . . . . Robot Schematics Acquired . | . . . . Robots Built . | . . . . Authchips . | . . . . Time . | . . . . Total Robot Build Rating . | . . . . Part Schematics Acquired 2 | . 2 . . Parts Built . | . . . . Authchips . | . . . . Time . | . . . . Total Part Build Rating . | . . . . Part Studies Acquired . | . . . . Parts Repaired . | . . . . Time . | . . . . Parts Recycled . | . . . . Recycled Matter . | . . . . Retrieved Matter . | . . . . Retrieved Components . | . . . . Parts Scanalyzed . | . . . . Part Schematics Acquired . | . . . . Parts Damaged . | . . . . Bothacking | -11 -10 -10 -7 ------------ Run | Yrd Mat Sub Scr Used RIF Installer . | . . . . Robots Hacked . | . . . . Non-combat . | . . . . Combat . | . . . . Robot Hacks Applied . | . . . . Relay Couplers Released . | . . . . Fabnet Peak Effective % . | . . . . Robots Rewired . | . . . . Allies Hacked . | . . . . Hacks Repelled . | . . . . Allies | -11 -10 -10 -7 -------- Run | Yrd Mat Sub Scr Total Allies . | . . . . Largest Group . | . . . . Highest-Rated Group . | . . . . Highest-Rated Ally . | . . . . Total Orders . | . . . . Ally Attacks . | . . . . Total Damage . | . . . . Kills . | . . . . Allies Corrupted . | . . . . Allies Melted . | . . . . Intel | -11 -10 -10 -7 ------- Run | Yrd Mat Sub Scr Active Infowar (turns) 2768 | 21 1189 185 1373 Seismic 2768 | 21 1189 185 1373 Robot Analysis Total 1 | . 1 . . Derelict Logs Recovered 3 | . . . 3 Drone Launches . | . . . . Drone Recoveries . | . . . . Exploration | -11 -10 -10 -7 ------------- Run | Yrd Mat Sub Scr Turns Passed 5477 | 130 1693 445 3209 Spaces Moved 2935 | 52 690 236 1957 Core 6 | 6 . . . Treads 2929 | 46 690 236 1957 Legs . | . . . . Wheels . | . . . . Hover . | . . . . Flight . | . . . . Fastest Speed 50 | 50 160 160 160 Average Speed 159 | 147 160 160 160 Slowest Speed 160 | 160 160 160 160 Overloaded Moves . | . . . . Propulsion Burnouts . | . . . . Robots Hopped . | . . . . Potential Cave-ins . | . . . . Cave-ins Triggered . | . . . . Exploration Rate (%) 50 | 4 95 16 85 Regions Visited 3 Branch Regions 2 Pre-discovered Areas 4 | . 3 . 1 Known Exits Taken 1 | . 1 . . Unknown Exits Taken 2 | 1 . 1 . Scrap Searched 10 | . . . 10 Spaces Dug . | . . . . Terrain Destroyed 40 | . 29 11 . Melee . | . . . . Projectile . | . . . . AOE 40 | . 29 11 . Terrain Rammed . | . . . . Walls Destroyed . | . . . . Machines Disabled . | . . . . Actions | -11 -10 -10 -7 --------- Run | Yrd Mat Sub Scr Total 3524 | 76 1145 271 2032 Wait 364 | . 364 . . Move 2932 | 51 689 235 1957 Hop . | . . . . Pick Up 45 | 5 10 5 25 Fast Attach 11 | 7 3 . 1 Attach 2 | . . 2 . Detach . | . . . . Swap 10 | . 4 4 2 Drop 42 | . 3 3 36 Fire 111 | 13 66 22 10 Melee . | . . . . Ram . | . . . . Kick . | . . . . Crush 6 | . 6 . . Escape Stasis . | . . . . Rewire 1 | . . . 1 Trap . | . . . . Miscellaneous . | . . . . Route ------- -11/Scrapyard -10/Materials (discovered 6 exits: *Mat x3 / [*Min x2] / *Sub) -10/Subcaves (discovered 4 exits: Mat x2 / Rec / *Scr) -7/Scraptown (discovered 1 exit: [*Fac]) History --------- Turn | Location | Event 7 | -11/Scrapyard | Discovered new exit (range 16) 131 | -11/Scrapyard | Entered Materials 249 | -10/Materials | Discovered new exit (range 16) 303 | -10/Materials | Build established: Mutant 423 | -10/Materials | Discovered new exit (range 7) 946 | -10/Materials | Discovered new exit (range 15) 1002 | -10/Materials | Discovered new exit (range 6) 1143 | -10/Materials | Central database locked down 1202 | -10/Materials | Learned location of 2 exits from Mines 1251 | -10/Materials | Learned location of Recycling (-7) 1313 | -10/Materials | Identified exit to Subcaves 1313 | -10/Materials | Identified exit to Materials 1331 | -10/Materials | Learned location of 2 exits from Subcaves 1343 | -10/Materials | Loaded intel: 2 recycling unit locations 1395 | -10/Materials | Learned location of 1 exit from Recycling 1795 | -10/Materials | Core integrity fell below 50% 1824 | -10/Materials | Entered Subcaves 1825 | -10/Subcaves | Approached by a straggling Scientist 1825 | -10/Subcaves | Identified exit to Materials 1826 | -10/Subcaves | Identified exit to Recycling 1833 | -10/Subcaves | Shifting Twisted Machinery released Battle Rifle 2253 | -10/Subcaves | Core integrity fell below 20% 2269 | -10/Subcaves | Entered Scraptown 2439 | -7/Scraptown | Visited UFD Registry 2439 | -7/Scraptown | Registered with UFD as "Wrenchnuts" 2514 | -7/Scraptown | Scanned Subdweller tech in exchange for log data 2517 | -7/Scraptown | Learned location of 1 exit from Research 2519 | -7/Scraptown | Learned location of 2 exits from Upper Caves 2684 | -7/Scraptown | Visited Research Penetration Think Tank 2735 | -7/Scraptown | Visited Abandonware Association 2767 | -7/Scraptown | Learned abandonware demo "SHUTEYE.EXE" 2807 | -7/Scraptown | Visited Scrapoid Research Area 2839 | -7/Scraptown | Visited Curators Association 2866 | -7/Scraptown | Visited DA-N13 Charitable Foundation 2873 | -7/Scraptown | Found DCF Scrap (28 items) 2913 | -7/Scraptown | Visited Science Testing Area 2967 | -7/Scraptown | Visited Botcube Research 2999 | -7/Scraptown | Visited LU-1G1's Boring Crew 3034 | -7/Scraptown | Visited Modified Component R&D 3213 | -7/Scraptown | Visited Bundlers 3332 | -7/Scraptown | Visited Red Mages 3396 | -7/Scraptown | Learned location of Extension (-4) 3830 | -7/Scraptown | Discovered new exit (range 13) 4961 | -7/Scraptown | Found Botcube 5181 | -7/Scraptown | Found Scrap Suit 5467 | -7/Scraptown | Attacked by Scraptown defenders 5478 | -7/Scraptown | Self-destructed Last Messages --------------- 05263_ Acquired Mak. Power Source. 05264_ A2-5AF(c): "Come one, come all! See for yourself a fine selection of the many wondrous pieces in our collection!" 05389_ Searching scrap... 05389_ Found Com. Wheel. 05389_ Found Melee Analysis Suite. 05389_ Found Missile Launcher. 05389_ Found Greatsword. 05389_ Found 70 Matter. 05394_ Acquired Greatsword. 05424_ A2-5AF(c): "Come one, come all! See for yourself a fine selection of the many wondrous pieces in our collection!" 05465_ 07S01-D is broken beyond repair. 05467_ ANNOUNCEMENT: Intruder alert! Defend Scraptown! 05469_ 07S01-D destroyed. 05472_ Acquired 12 matter. 05472_ Machine disabled. Map ----- +----------------------------------------------------+ | ""#?? ????????????#"" "## ! ! #?????? | | ""#? "" "" ???????????#"" "## % #?????? | | ""# "" "" ?????????###"" "## = #?????? | | ""# " ? ???####### #"" "##*!=!###?????? | | "" "" ???? !! [###?????? | | "" "" ????? "## [[]! #?????? | | ""# " ? ????###### #"" "##**!%[ #?????? | | ""# "" "" ?????????###"" "##= [ =#?????? | | ""#? "" "" ???????????#"" "#########?????? | | ""#?? ????????????#"" "#?????????????? | | ""#??? ?????????????#"" "#?????????????? | | ""###### ################"" "####??##??????? | | """""""""""""""""""""""""""" "##"###"###"#??? | | """""""""""""""""""""""""""" "!" "!" #??? | | E "## """ """ #??? | | "## "#? | | "## ""#?? | | ## "[#?? | | p # ""#?? | | " """"""""""" """"""""""x """"" ## "#? | | # ########### #########;#p###### ## """ """ ###? | | #?# #?# # ## "[" "!" #??? | | " "#?# #?#" # ##"###"###"#??? | | " #?# """"" #?#" [ " # ###???##??????? | | " "#?# "###" #?#""*% """# #?????????????? | | " "#?# "#X#" #?# @ """# #?????????????? | | """" ""#?# "# #" #?# " """# ############??? | | """""""#?# #?#""" " # #??? | | ########?# " " " #?#""" # ##??? | | ?????????#"""""""""#?#""" # #??? | | ?????????###########?# " " " # #??? | | ?????????????????????# """""# #??? | | ?????????????????????#?######### ############??? | | ???????????????????????######### #####?????????? | | ???????????????????"??#"""##"|"# """"#?????????? | | ???????????##" "##"""##"" ##" # "" "#?????????? | | ?????????? "#?????????? | | ?????????? ! " "#?????????? | | ?????????? =] """"#?????????? | | ?????????????????#"|"##!!%##""|## ######?????????? | | ??????????????????????#"""##"""####??????????????? | | ??????????????????????##########?????????????????? | | ?????????????????????????????????????????????????? | | ?????????????????????????????????????????????????? | | ?????????????????????????????????????????????????? | | ?????????????????????????????????????????????????? | | ?????????????????????????????????????????????????? | | ?????????????????????????????????????????????????? | | ?????????????????????????????????????????????????? | | ?????????????????????????????????????????????????? | +----------------------------------------------------+ Best States ------------- Heat Dissipation 39 Energy Generation 10 Energy Capacity 250 Matter Stores 300 Matter Capacity 300 Sight Range 16 Terrain Scan Density 10 Evasion (%) 40 Recoil Reduction 2 Item Schematics ----------------- Hcp. Storage Unit | -10/Materials | Hacked Huge Storage Unit | -10/Materials | Hacked Robot Schematics ------------------ None Fabricated ------------ Nothing Repaired ---------- Nothing Studied --------- None Alien Tech Used ----------------- None Achievements -------------- None Challenges ------------ None Game ------ Seed CargoStructuralMinigun Manual? 0 Play Time 00:19:54 Cumulative 374.8 hours Start 2025.11.15 @ 17:41:16 End 2025.11.15 @ 18:01:37 Sessions 2 Manual Loads 0 Difficulty Rogue Special Mode None Game No. 256 Rogue 256 Adventurer 0 Explorer 0 Win Type - Total 24 Types 9/0/8/1/1/0/2/1/1/1 Lore% 83 Gallery% 79 Achievement% 68 Wizard Run 0 Options --------- Layout 1 ASCII 0 Keyboard 0 Movement Arrows Keybinds 0 Fullscreen 2 Font 24/Smallcaps Map View 50x35 Zoom Use 0% Tactical HUD 1 Map Filters NONE Filters NONE Steam 1 RUN: 3ce0ef31-9ad1-4518-89b0-ce7a41469c4e